[Event "DVM U14 2021"]
[Site "Willingen"]
[Date "2022.08.14"]
[Round "3"]
[White "Fettig, Michel"]
[Black "Klein, Maxim"]
[Result "0-1"]
[ECO "B13"]
[WhiteElo "1370"]
[BlackElo "1323"]
[Annotator "NA RC"]
[PlyCount "72"]
[EventDate "2022.08.12"]
[EventType "team-tourn"]
[EventRounds "7"]
[EventCountry "GER"]
[SourceTitle "playchess.com"]
[Source "ChessBase"]
[SourceQuality "1"]
[TimeControl "40/5400+30:1800+30"]

1. e4 {[%emt 0:00:06]} c6 {[%emt 0:00:26]} 2. d4 {[%emt 0:00:05]} d5 {[%emt 0:00:22]} 3. exd5 {[%emt 0:00:05]} cxd5 {[%emt 0:01:17]} 4. Bf4 {[%emt 0:00:15]} Nc6 {[%emt 0:02:04]} 5. c3 {[%emt 0:00:17]} Nf6 {[%emt 0:00:22]} 6. Bd3 {[%emt 0:00:35]} Bg4 {[%emt 0:00:42]} 7. Ne2 {[%emt 0:00:46]} e6 {[%emt 0:00:51]} 8. Qc2 {[%emt 0:06:48]} Bxe2 {[%emt 0:00:42]} 9. Qxe2 {[%emt 0:00:20]} h6 {[%emt 0:00:28]} 10. Nd2 {[%emt 0:01:25]} Bd6 {[%emt 0:05:30]} 11. Bg3 {[%emt 0:01:32]} Rc8 {[%emt 0:01:42]} 12. Nf3 {[%emt 0:08:26]} O-O {[%emt 0:02:20]} 13. Bh4 {[%emt 0:00:36]} Be7 {[%emt 0:00:29]} 14. Bc2 {[%emt 0:03:20]} Qa5 {[%emt 0:01:17]} 15. Qd3 {[%emt 0:02:59]} Ne4 {[%emt 0:00:39]} 16. Bxe7 {[%emt 0:00:07]} Nxe7 {[%emt 0:00:11]} 17. Nd2 {[%emt 0:01:16]} f5 {[%emt 0:01:51]} 18. O-O {[%emt 0:08:28]} Rc7 {[%emt 0:00:21]} 19. f3 {[%emt 0:03:15]} Nd6 {[%emt 0:00:50]} 20. Nb3 {[%emt 0:03:23]} Qb6 {[%emt 0:00:17]} 21. Nc5 {[%emt 0:06:57]} Nf7 {[%emt 0:01:23]} 22. Rfe1 {[%emt 0:01:01]} e5 {[%emt 0:00:55]} 23. Ba4 {[%emt 0:03:45]} e4 {[%emt 0:04:20]} 24. fxe4 {[%emt 0:00:11]} fxe4 {[%emt 0:03:20]} 25. Qg3 {[%emt 0:26:12]} Rd8 {[%emt 0:01:54]} 26. Qg4 {[%emt 0:02:00]} Rd6 {[%emt 0:03:24]} 27. Rf1 {[%emt 0:04:51]} Rg6 {[%emt 0:03:20]} 28. Qh5 {[%emt 0:02:36]} Qxb2 {[%emt 0:01:46]} 29. g3 {[%emt 0:03:50]} b6 {[%emt 0:01:48]} 30. Be8 {[%emt 0:07:22]} Kh7 {[%emt 0:05:09]} 31. Rab1 {[%emt 0:01:27]} Qxa2 {[%emt 0:01:27]} 32. Ra1 {[%emt 0:00:18]} Qb2 {[%emt 0:00:10]} 33. Rab1 {[%emt 0:00:11]} Qc2 {[%emt 0:00:17]} 34. Rbc1 {[%emt 0:00:28]} Qb2 {[%emt 0:00:09]} 35. Rb1 {[%emt 0:00:43]} Qa2 {[%emt 0:01:25]} 36. h4 {[%emt 0:00:09]} Rxg3+ {[%emt 0:00:36]} 0-1

[Event "DVM U14 2021"]
[Site "Willingen"]
[Date "2022.08.14"]
[Round "3"]
[White "Gering, Jakob"]
[Black "Mehner, Lorenz"]
[Result "1-0"]
[ECO "D02"]
[WhiteElo "1349"]
[BlackElo "1602"]
[Annotator "NA RC"]
[PlyCount "69"]
[EventDate "2022.08.12"]
[EventType "team-tourn"]
[EventRounds "7"]
[EventCountry "GER"]
[SourceTitle "playchess.com"]
[Source "ChessBase"]
[SourceQuality "1"]
[TimeControl "40/5400+30:1800+30"]

1. d4 {[%emt 0:00:05]} Nf6 {[%emt 0:00:12]} 2. Bf4 {[%emt 0:00:26]} c5 {[%emt 0:01:10]} 3. c3 {[%emt 0:06:09]} e6 {[%emt 0:04:53]} 4. e3 {[%emt 0:01:55]} d5 {[%emt 0:02:01]} 5. Nd2 {[%emt 0:01:22]} Nc6 {[%emt 0:03:43]} 6. Ngf3 {[%emt 0:00:24]} Bd6 {[%emt 0:02:16]} 7. Bg3 {[%emt 0:00:33]} O-O {[%emt 0:01:55]} 8. Bd3 {[%emt 0:00:48]} Re8 {[%emt 0:02:04]} 9. Ne5 {[%emt 0:03:58]} cxd4 {[%emt 0:03:44]} 10. exd4 {[%emt 0:00:37]} Qc7 {[%emt 0:02:37]} 11. Ndf3 {[%emt 0:02:41]} Rb8 {[%emt 0:04:33]} 12. O-O {[%emt 0:08:59]} b5 {[%emt 0:01:05]} 13. Nxc6 {[%emt 0:03:19]} Qxc6 {[%emt 0:01:44]} 14. Ne5 {[%emt 0:01:26]} Qc7 {[%emt 0:00:52]} 15. Qe2 {[%emt 0:06:07]} a6 {[%emt 0:05:55]} 16. a4 {[%emt 0:06:03]} b4 {[%emt 0:05:00]} 17. cxb4 {[%emt 0:08:14]} Rxb4 {[%emt 0:03:28]} 18. Bxa6 {[%emt 0:06:57]} Bxa6 {[%emt 0:05:32]} 19. Qxa6 {[%emt 0:00:57]} Rxb2 {[%emt 0:04:17]} 20. Rfc1 {[%emt 0:05:10]} Qb6 {[%emt 0:02:09]} 21. Qd3 {[%emt 0:02:13]} Bxe5 {[%emt 0:03:48]} 22. Bxe5 {[%emt 0:02:42]} Ne4 {[%emt 0:02:57]} 23. a5 {[%emt 0:04:20]} Qa7 {[%emt 0:12:29]} 24. Rc7 {[%emt 0:03:36]} Rb7 {[%emt 0:01:47]} 25. Rxb7 {[%emt 0:04:52]} Qxb7 {[%emt 0:00:18]} 26. Rb1 {[%emt 0:03:18]} Qc8 {[%emt 0:08:14]} 27. a6 {[%emt 0:03:56]} Nc3 {[%emt 0:01:58]} 28. Rb8 {[%emt 0:03:03]} Qc6 {[%emt 0:00:41]} 29. Rxe8+ {[%emt 0:01:27]} Qxe8 {[%emt 0:00:21]} 30. Qxc3 {[%emt 0:01:07]} f6 {[%emt 0:00:35]} 31. Bg3 {[%emt 0:03:26]} Qa4 {[%emt 0:00:56]} 32. Qc8+ {[%emt 0:00:56]} Kf7 {[%emt 0:00:07]} 33. Qb7+ {[%emt 0:00:26]} Kg6 {[%emt 0:00:23]} 34. h3 {[%emt 0:00:14]} f5 {[%emt 0:01:12]} 35. Be5 {[%emt 0:01:24]} 1-0

[Event "DVM U14 2021"]
[Site "Willingen"]
[Date "2022.08.14"]
[Round "3"]
[White "Vesszö, Aaron"]
[Black "Dickel, Karl-Joachim"]
[Result "1-0"]
[ECO "D02"]
[WhiteElo "1306"]
[BlackElo "1178"]
[Annotator "NA RC"]
[PlyCount "37"]
[EventDate "2022.08.12"]
[EventType "team-tourn"]
[EventRounds "7"]
[EventCountry "GER"]
[SourceTitle "playchess.com"]
[Source "ChessBase"]
[SourceQuality "1"]
[TimeControl "40/5400+30:1800+30"]

1. d4 {[%emt 0:00:04]} d5 {[%emt 0:00:00]} 2. Nf3 {[%emt 0:00:10]} Nf6 {[%emt 0:00:23]} 3. g3 {[%emt 0:00:10]} Nc6 {[%emt 0:00:36]} 4. Bg2 {[%emt 0:00:11]} e6 {[%emt 0:00:10]} 5. O-O {[%emt 0:00:22]} Be7 {[%emt 0:00:34]} 6. c4 {[%emt 0:07:30]} dxc4 {[%emt 0:01:56]} 7. e3 {[%emt 0:00:10]} O-O {[%emt 0:01:56]} 8. Nbd2 {[%emt 0:01:30]} Rb8 {[%emt 0:06:06]} 9. Nxc4 {[%emt 0:00:14]} Nd7 {[%emt 0:03:49]} 10. a4 {[%emt 0:06:39]} Bf6 {[%emt 0:04:00]} 11. b3 {[%emt 0:14:59]} Nb6 {[%emt 0:02:26]} 12. Nxb6 {[%emt 0:00:22]} cxb6 {[%emt 0:00:05]} 13. Qe2 {[%emt 0:08:12]} e5 {[%emt 0:03:22]} 14. Rd1 {[%emt 0:04:30]} exd4 {[%emt 0:02:44]} 15. Nxd4 {[%emt 0:09:33]} Nxd4 {[%emt 0:01:12]} 16. exd4 {[%emt 0:00:40]} Re8 {[%emt 0:04:24]} 17. Qd3 {[%emt 0:04:20]} Bxd4 {[%emt 0:02:05]} 18. Qxd4 {[%emt 0:01:16]} Re1+ {[%emt 0:00:19]} 19. Rxe1 1-0

[Event "DVM U14 2021"]
[Site "Willingen"]
[Date "2022.08.14"]
[Round "3"]
[White "Huber, Laura"]
[Black "Malan, Jan-Willem"]
[Result "1/2-1/2"]
[ECO "B24"]
[WhiteElo "1302"]
[BlackElo "1747"]
[Annotator "NA RC"]
[PlyCount "54"]
[EventDate "2022.08.12"]
[EventType "team-tourn"]
[EventRounds "7"]
[EventCountry "GER"]
[SourceTitle "playchess.com"]
[Source "ChessBase"]
[SourceQuality "1"]
[TimeControl "40/5400+30:1800+30"]

1. e4 {[%emt 0:00:00]} c5 {[%emt 0:00:12]} 2. Nc3 {[%emt 0:00:04]} g6 {[%emt 0:00:27]} 3. f4 {[%emt 0:00:08]} Bg7 {[%emt 0:00:31]} 4. Nf3 {[%emt 0:00:14]} Nc6 {[%emt 0:00:42]} 5. d3 {[%emt 0:04:16]} e6 {[%emt 0:02:59]} 6. g3 {[%emt 0:00:30]} Nge7 {[%emt 0:00:39]} 7. Bg2 {[%emt 0:00:07]} b6 {[%emt 0:00:25]} 8. O-O {[%emt 0:00:10]} Bb7 {[%emt 0:01:05]} 9. Nh4 {[%emt 0:11:30]} f5 {[%emt 0:04:08]} 10. e5 {[%emt 0:05:29]} O-O {[%emt 0:01:20]} 11. Nb5 {[%emt 0:02:24]} Nc8 {[%emt 0:01:18]} 12. c3 {[%emt 0:08:33]} a6 {[%emt 0:02:57]} 13. Na3 {[%emt 0:01:17]} d6 {[%emt 0:01:07]} 14. d4 {[%emt 0:01:07]} d5 {[%emt 0:01:48]} 15. Nc2 {[%emt 0:01:03]} Qe7 {[%emt 0:03:07]} 16. Nf3 {[%emt 0:01:16]} N8a7 {[%emt 0:01:32]} 17. Be3 {[%emt 0:04:26]} Rfd8 {[%emt 0:03:41]} 18. Qe2 {[%emt 0:02:54]} c4 {[%emt 0:01:36]} 19. Ng5 {[%emt 0:03:19]} h6 {[%emt 0:02:10]} 20. Nh3 {[%emt 0:01:17]} Kh7 {[%emt 0:01:59]} 21. Nf2 {[%emt 0:07:19]} Rf8 {[%emt 0:01:20]} 22. h4 {[%emt 0:03:38]} Rg8 {[%emt 0:01:45]} 23. Nh3 {[%emt 0:00:33]} b5 {[%emt 0:05:52]} 24. Kh2 {[%emt 0:02:53]} Nc8 {[%emt 0:03:52]} 25. Bf3 {[%emt 0:01:27]} Nb6 {[%emt 0:02:33]} 26. h5 {[%emt 0:00:34]} a5 {[%emt 0:02:33]} 27. hxg6+ {[%emt 0:00:52]} Kxg6 {[%emt 0:05:37]} 1/2-1/2

[Event "DVM U14 2021"]
[Site "Willingen"]
[Date "2022.08.14"]
[Round "3"]
[White "Walter, Romeo"]
[Black "Braeutigam, Alexander"]
[Result "1/2-1/2"]
[ECO "B22"]
[WhiteElo "1197"]
[BlackElo "1771"]
[Annotator "NA RC"]
[PlyCount "141"]
[EventDate "2022.08.12"]
[EventType "team-tourn"]
[EventRounds "7"]
[EventCountry "GER"]
[SourceTitle "playchess.com"]
[Source "ChessBase"]
[SourceQuality "1"]
[TimeControl "40/5400+30:1800+30"]

1. e4 {[%emt 0:00:05]} c5 {[%emt 0:00:00]} 2. c3 {[%emt 0:00:04]} d5 {[%emt 0:00:00]} 3. exd5 {[%emt 0:00:04]} Qxd5 {[%emt 0:00:00]} 4. d4 {[%emt 0:00:06]} Nc6 {[%emt 0:00:00]} 5. Nf3 {[%emt 0:00:20]} Bg4 {[%emt 0:02:41]} 6. Be2 {[%emt 0:01:17]} Nf6 {[%emt 0:02:56]} 7. O-O {[%emt 0:00:42]} e6 {[%emt 0:02:26]} 8. Bf4 {[%emt 0:05:21]} Rd8 {[%emt 0:04:06]} 9. Be5 {[%emt 0:03:48]} Be7 {[%emt 0:09:45]} 10. Na3 {[%emt 0:04:39]} cxd4 {[%emt 0:03:37]} 11. cxd4 {[%emt 0:00:55]} O-O {[%emt 0:08:46]} 12. Nc2 {[%emt 0:03:00]} Qa5 {[%emt 0:01:31]} 13. Qe1 {[%emt 0:01:12]} Qb6 {[%emt 0:09:11]} 14. b3 {[%emt 0:03:54]} Rd7 {[%emt 0:06:22]} 15. h3 {[%emt 0:01:50]} Bh5 {[%emt 0:01:19]} 16. Rd1 {[%emt 0:01:21]} Rc8 {[%emt 0:04:04]} 17. Bxf6 {[%emt 0:01:22]} Bxf6 {[%emt 0:01:29]} 18. Ne5 {[%emt 0:00:33]} Bxe5 {[%emt 0:03:08]} 19. dxe5 {[%emt 0:02:04]} Rxd1 {[%emt 0:01:59]} 20. Bxd1 {[%emt 0:00:43]} Bxd1 {[%emt 0:00:07]} 21. Qxd1 {[%emt 0:00:14]} Nxe5 {[%emt 0:01:11]} 22. Re1 {[%emt 0:01:30]} Qc7 {[%emt 0:04:16]} 23. Ne3 {[%emt 0:01:17]} h6 {[%emt 0:02:32]} 24. Qd4 {[%emt 0:01:59]} Nc6 {[%emt 0:01:35]} 25. Qc5 {[%emt 0:01:02]} Rd8 {[%emt 0:00:43]} 26. Nc4 {[%emt 0:00:49]} Qd7 {[%emt 0:01:10]} 27. Qe3 {[%emt 0:03:15]} Qd5 {[%emt 0:02:39]} 28. Re2 {[%emt 0:04:03]} Qd1+ {[%emt 0:01:46]} 29. Re1 {[%emt 0:02:53]} Qd4 {[%emt 0:03:56]} 30. Kf1 {[%emt 0:01:23]} Kf8 {[%emt 0:06:28]} 31. Ke2 {[%emt 0:00:45]} b5 {[%emt 0:00:15]} 32. Nd2 {[%emt 0:00:32]} Qxe3+ {[%emt 0:00:42]} 33. fxe3 {[%emt 0:01:04]} Ke7 {[%emt 0:00:21]} 34. Rc1 {[%emt 0:00:54]} Kd7 {[%emt 0:00:12]} 35. Ne4 {[%emt 0:00:32]} Kc7 {[%emt 0:01:43]} 36. Nc5 {[%emt 0:00:18]} Kb6 {[%emt 0:01:20]} 37. Nd3 {[%emt 0:00:55]} a5 {[%emt 0:01:10]} 38. a4 {[%emt 0:02:55]} bxa4 {[%emt 0:00:12]} 39. bxa4 {[%emt 0:00:22]} Nb4 {[%emt 0:02:47]} 40. Ne5 {[%emt 0:02:54]} f6 {[%emt 0:04:10]} 41. Nc4+ {[%emt 0:30:22]} Ka6 {[%emt 0:30:49]} 42. Nd2 {[%emt 0:06:30]} Rd7 {[%emt 0:04:01]} 43. Rc5 {[%emt 0:04:55]} Kb6 {[%emt 0:01:01]} 44. Rb5+ {[%emt 0:00:10]} Ka6 {[%emt 0:00:16]} 45. Nb3 {[%emt 0:02:17]} Rd5 {[%emt 0:01:28]} 46. Nc5+ {[%emt 0:00:16]} Ka7 {[%emt 0:01:18]} 47. Rxa5+ {[%emt 0:00:08]} Kb6 {[%emt 0:00:56]} 48. Rb5+ {[%emt 0:00:09]} Kc6 {[%emt 0:00:00]} 49. Nxe6 {[%emt 0:00:00]} Rxb5 {[%emt 0:00:00]} 50. Nd4+ {[%emt 0:00:00]} Kb6 {[%emt 0:00:00]} 51. axb5 {[%emt 0:00:00]} Nd5 {[%emt 0:00:00]} 52. Kf3 {[%emt 0:00:00]} Nc7 {[%emt 0:00:00]} 53. Kf4 {[%emt 0:00:00]} g6 {[%emt 0:00:00]} 54. Ke4 {[%emt 0:00:00]} Kc5 {[%emt 0:00:00]} 55. g4 {[%emt 0:00:00]} Kb6 {[%emt 0:00:00]} 56. h4 {[%emt 0:00:00]} Kc5 {[%emt 0:00:00]} 57. h5 {[%emt 0:00:00]} gxh5 {[%emt 0:00:00]} 58. gxh5 {[%emt 0:00:00]} Nd5 {[%emt 0:00:00]} 59. Ne6+ {[%emt 0:00:00]} Kd6 {[%emt 0:00:00]} 60. Nf4 {[%emt 0:00:00]} Ne7 {[%emt 0:03:20]} 61. Ng6 {[%emt 0:00:00]} f5+ {[%emt 0:00:15]} 62. Kf4 {[%emt 0:00:00]} Nd5+ {[%emt 0:01:59]} 63. Kxf5 {[%emt 0:00:00]} Nxe3+ {[%emt 0:01:36]} 64. Ke4 {[%emt 0:00:00]} Ng4 {[%emt 0:00:35]} 65. b6 {[%emt 0:00:00]} Nf6+ {[%emt 0:00:54]} 66. Kf5 {[%emt 0:00:00]} Nxh5 {[%emt 0:00:53]} 67. Ne5 {[%emt 0:00:00]} Ng7+ {[%emt 0:00:44]} 68. Kg6 {[%emt 0:00:00]} Ne6 {[%emt 0:00:36]} 69. Kxh6 {[%emt 0:00:00]} Nc5 {[%emt 0:00:50]} 70. Nc4+ {[%emt 0:00:00]} Kc6 {[%emt 0:00:46]} 71. b7 1/2-1/2

[Event "DVM U14 2021"]
[Site "Willingen"]
[Date "2022.08.14"]
[Round "3"]
[White "Menne, Lukas"]
[Black "Widmann, Maximilian"]
[Result "0-1"]
[ECO "D02"]
[WhiteElo "1190"]
[BlackElo "1573"]
[Annotator "NA RC"]
[PlyCount "82"]
[EventDate "2022.08.12"]
[EventType "team-tourn"]
[EventRounds "7"]
[EventCountry "GER"]
[SourceTitle "playchess.com"]
[Source "ChessBase"]
[SourceQuality "1"]
[TimeControl "40/5400+30:1800+30"]

1. d4 {[%emt 0:00:02]} d5 {[%emt 0:00:06]} 2. Bf4 {[%emt 0:00:08]} Nf6 {[%emt 0:00:36]} 3. e3 {[%emt 0:00:27]} c5 {[%emt 0:03:27]} 4. Nf3 {[%emt 0:00:41]} Nc6 {[%emt 0:04:04]} 5. c3 {[%emt 0:00:27]} Bf5 {[%emt 0:03:27]} 6. Be2 {[%emt 0:00:50]} e6 {[%emt 0:01:06]} 7. O-O {[%emt 0:00:32]} Be7 {[%emt 0:00:33]} 8. Nbd2 {[%emt 0:02:18]} O-O {[%emt 0:00:46]} 9. Ne5 {[%emt 0:02:57]} Rc8 {[%emt 0:09:19]} 10. Ndf3 {[%emt 0:03:19]} Ne4 {[%emt 0:02:13]} 11. Nxc6 {[%emt 0:02:52]} Rxc6 {[%emt 0:03:10]} 12. Ne5 {[%emt 0:01:06]} Rc8 {[%emt 0:05:27]} 13. Bd3 {[%emt 0:02:21]} f6 {[%emt 0:08:59]} 14. Nf3 {[%emt 0:03:05]} g5 {[%emt 0:07:42]} 15. Bg3 {[%emt 0:02:06]} Nxg3 {[%emt 0:06:18]} 16. hxg3 {[%emt 0:00:28]} Bxd3 {[%emt 0:02:17]} 17. Qxd3 {[%emt 0:00:08]} Kg7 {[%emt 0:00:48]} 18. g4 {[%emt 0:01:21]} Rh8 {[%emt 0:10:29]} 19. g3 {[%emt 0:01:45]} Qb6 {[%emt 0:13:52]} 20. b3 {[%emt 0:01:03]} c4 {[%emt 0:01:45]} 21. Qc2 {[%emt 0:01:19]} cxb3 {[%emt 0:01:51]} 22. axb3 {[%emt 0:00:29]} a6 {[%emt 0:03:51]} 23. Rab1 {[%emt 0:00:51]} Qc6 {[%emt 0:01:08]} 24. Rfc1 {[%emt 0:00:45]} Rc7 {[%emt 0:00:31]} 25. Nd2 {[%emt 0:01:52]} h5 {[%emt 0:03:06]} 26. gxh5 {[%emt 0:00:58]} Rxh5 {[%emt 0:01:00]} 27. c4 {[%emt 0:00:45]} dxc4 {[%emt 0:00:17]} 28. f3 {[%emt 0:01:37]} c3 {[%emt 0:01:17]} 29. Ne4 {[%emt 0:01:51]} f5 {[%emt 0:02:03]} 30. g4 {[%emt 0:01:12]} Rh8 {[%emt 0:01:04]} 31. gxf5 {[%emt 0:00:45]} exf5 {[%emt 0:00:16]} 32. Nxg5 {[%emt 0:01:53]} Bxg5 {[%emt 0:00:36]} 33. Qxf5 {[%emt 0:00:14]} Bxe3+ {[%emt 0:00:27]} 34. Kg2 {[%emt 0:01:36]} Qg6+ {[%emt 0:00:10]} 35. Qxg6+ {[%emt 0:00:07]} Kxg6 {[%emt 0:00:03]} 36. Rc2 {[%emt 0:00:44]} Bf4 {[%emt 0:00:17]} 37. Rg1 {[%emt 0:00:53]} Rh2+ {[%emt 0:01:48]} 38. Kf1+ {[%emt 0:00:08]} Kf5 {[%emt 0:00:16]} 39. Rxh2 {[%emt 0:00:50]} Bxh2 {[%emt 0:00:04]} 40. Rg8 {[%emt 0:00:36]} c2 {[%emt 0:00:32]} 41. Rf8+ {[%emt 0:30:23]} Kg6 {[%emt 0:30:28]} 0-1

[Event "DVM U14 2021"]
[Site "Willingen"]
[Date "2022.08.14"]
[Round "3"]
[White "Sun, Christopher"]
[Black "Gloria, Fabian"]
[Result "0-1"]
[ECO "D02"]
[WhiteElo "1091"]
[BlackElo "1420"]
[Annotator "NA RC"]
[PlyCount "106"]
[EventDate "2022.08.12"]
[EventType "team-tourn"]
[EventRounds "7"]
[EventCountry "GER"]
[SourceTitle "playchess.com"]
[Source "ChessBase"]
[SourceQuality "1"]
[TimeControl "40/5400+30:1800+30"]

1. d4 {[%emt 0:00:01]} d5 {[%emt 0:00:06]} 2. Nf3 {[%emt 0:00:48]} Nf6 {[%emt 0:02:32]} 3. g3 {[%emt 0:00:13]} e6 {[%emt 0:00:38]} 4. Bg2 {[%emt 0:00:28]} c5 {[%emt 0:00:26]} 5. O-O {[%emt 0:01:33]} Nc6 {[%emt 0:01:07]} 6. c3 {[%emt 0:01:36]} b6 {[%emt 0:01:07]} 7. Bf4 {[%emt 0:01:06]} Bd6 {[%emt 0:01:37]} 8. Bxd6 {[%emt 0:00:25]} Qxd6 {[%emt 0:03:59]} 9. e3 {[%emt 0:01:56]} O-O {[%emt 0:01:55]} 10. Nbd2 {[%emt 0:06:45]} Bb7 {[%emt 0:01:15]} 11. c4 {[%emt 0:02:14]} Ba6 {[%emt 0:05:14]} 12. b3 {[%emt 0:00:55]} Rac8 {[%emt 0:01:14]} 13. Re1 {[%emt 0:01:37]} Rfd8 {[%emt 0:04:02]} 14. Qc2 {[%emt 0:00:14]} cxd4 {[%emt 0:01:32]} 15. exd4 {[%emt 0:01:32]} dxc4 {[%emt 0:01:15]} 16. bxc4 {[%emt 0:02:29]} Nxd4 {[%emt 0:01:34]} 17. Nxd4 {[%emt 0:01:15]} Qxd4 {[%emt 0:00:23]} 18. Nb3 {[%emt 0:02:29]} Qxc4 {[%emt 0:01:26]} 19. Qxc4 {[%emt 0:00:43]} Rxc4 {[%emt 0:00:41]} 20. Bf1 {[%emt 0:02:00]} Ra4 {[%emt 0:01:52]} 21. Red1 {[%emt 0:01:18]} Nd5 {[%emt 0:01:12]} 22. Nd4 {[%emt 0:02:18]} Bxf1 {[%emt 0:01:03]} 23. Kxf1 {[%emt 0:00:59]} Nc3 {[%emt 0:03:31]} 24. Rdc1 {[%emt 0:01:54]} Rxa2 {[%emt 0:02:57]} 25. Rxa2 {[%emt 0:00:45]} Nxa2 {[%emt 0:00:09]} 26. Rc2 {[%emt 0:01:32]} Nb4 {[%emt 0:00:47]} 27. Rc7 {[%emt 0:02:26]} g6 {[%emt 0:02:45]} 28. Nb5 {[%emt 0:00:48]} a5 {[%emt 0:00:12]} 29. Rb7 {[%emt 0:00:22]} Nd5 {[%emt 0:00:26]} 30. f4 {[%emt 0:01:42]} Kg7 {[%emt 0:01:29]} 31. Ke2 {[%emt 0:00:20]} Rc8 {[%emt 0:00:27]} 32. Nd6 {[%emt 0:01:15]} Rf8 {[%emt 0:02:28]} 33. Nc4 {[%emt 0:00:43]} h5 {[%emt 0:03:10]} 34. Nxb6 {[%emt 0:00:35]} Nxb6 {[%emt 0:00:07]} 35. Rxb6 {[%emt 0:00:22]} Rc8 {[%emt 0:00:53]} 36. h4 {[%emt 0:00:36]} Rc5 {[%emt 0:01:22]} 37. Ra6 {[%emt 0:01:14]} Kf6 {[%emt 0:00:45]} 38. Ra7 {[%emt 0:01:05]} e5 {[%emt 0:01:32]} 39. fxe5+ {[%emt 0:01:07]} Rxe5+ {[%emt 0:00:09]} 40. Kf3 {[%emt 0:01:09]} Ke6 {[%emt 0:02:44]} 41. Kf4 {[%emt 0:31:29]} Rf5+ {[%emt 0:38:46]} 42. Ke4 {[%emt 0:00:27]} Kd6 {[%emt 0:01:51]} 43. Ra6+ {[%emt 0:02:23]} Kc7 {[%emt 0:00:45]} 44. Ra7+ {[%emt 0:01:09]} Kb6 {[%emt 0:00:51]} 45. Ra8 {[%emt 0:00:09]} Kb7 {[%emt 0:00:16]} 46. Rd8 {[%emt 0:00:36]} Kb6 {[%emt 0:03:02]} 47. Ra8 {[%emt 0:02:52]} Kb5 {[%emt 0:00:11]} 48. Rd8 {[%emt 0:01:10]} Rc5 {[%emt 0:00:25]} 49. Rd5 {[%emt 0:01:10]} Rxd5 {[%emt 0:00:05]} 50. Kxd5 {[%emt 0:00:09]} a4 {[%emt 0:00:04]} 51. Ke5 {[%emt 0:00:50]} a3 {[%emt 0:00:04]} 52. Kf6 {[%emt 0:00:08]} a2 {[%emt 0:00:04]} 53. Kxf7 {[%emt 0:00:22]} a1=Q {[%emt 0:00:05]} 0-1

[Event "DVM U14 2021"]
[Site "Willingen"]
[Date "2022.08.14"]
[Round "4"]
[White "Jones, Richard S."]
[Black "Sun, Christopher"]
[Result "0-1"]
[ECO "C50"]
[WhiteElo "2394"]
[BlackElo "1091"]
[Annotator "TA"]
[PlyCount "54"]
[EventDate "2022.08.12"]
[EventType "team-tourn"]
[EventRounds "7"]
[EventCountry "GER"]
[SourceTitle "playchess.com"]
[Source "ChessBase"]
[SourceQuality "1"]
[TimeControl "40/5400+30:1800+30"]

{[%evp 12,54,18,3,6,-6,0,0,0,0,0,0,0,-12,0,0,17,-23,-18,-23,-31,-55,-51,-77,-56,-144,-56,-89,-44,-68,-66,-54,-25,-462,-462,-889,-861,-29987,-29981,-29989,-29990,-29990,-29991,-29991,-29992]} 1. e4 {[%emt 0:00:01]} e5 {[%emt 0:00:05]} 2. Nf3 {[%emt 0:00:04]} Nc6 {[%emt 0:00:12]} 3. Bc4 {[%emt 0:00:05]} Nf6 {[%emt 0:00:12]} 4. d3 {[%emt 0:00:08]} Bc5 {[%emt 0:00:06]} 5. Nc3 {[%emt 0:00:07]} h6 {[%emt 0:00:53]} 6. a3 {[%emt 0:00:12]} d6 {[%emt 0:00:31] 6...a6 is more advanced technology.} 7. h3 {[%emt 0:00:17]} O-O {[%emt 0:00:54] C50: Hungarian Defence and Giuoco Pianissimo.} 8. Bd2 {[%emt 0:01:27]} a6 {[%emt 0:00:25]} 9. O-O {[%emt 0:01:07]} Ne7 {[%emt 0:01:07] The position is equal.} 10. Re1 {[%emt 0:03:11] [#]} Ng6 $146 {[%emt 0:00:55]} ({Predecessor:} 10... b5 11. Ba2 Bb7 12. Be3 Nd7 13. d4 Bb6 14. dxe5 Bxe3 15. Rxe3 Nxe5 16. Nxe5 dxe5 {1-0 (31) Folch Raga,I-De Andres Sanchez,J Valencia 2003}) 11. Ne2 {[%emt 0:03:39]} Be6 {[%emt 0:03:19] Threatens to win with ...Bxc4.} 12. Ba2 {[%emt 0:01:39]} c6 {[%emt 0:02:06][%cal Bc7c6,Bc6d5][%mdl 32]} 13. Ng3 {[%emt 0:03:12]} Qd7 {[%emt 0:04:32][%cal Oe6h3]} 14. Be3 {[%emt 0:09:08]} Bxe3 {[%emt 0:02:35]} 15. fxe3 {[%emt 0:00:48]} d5 {[%emt 0:02:36]} 16. exd5 {[%emt 0:03:49]} cxd5 {[%emt 0:01:17]} 17. Kh2 {[%emt 0:01:41]} Rac8 {[%emt 0:01:34] Black is more active.} 18. Qd2 {[%emt 0:09:58]} (18. Bb3 $15) 18... Rfd8 {[%emt 0:02:21]} (18... Qc7 $17 {Hoping for ...e4.} 19. e4 Qxc2) 19. Rac1 {[%emt 0:03:53]} Kh8 {[%emt 0:05:23]} 20. Bb3 {[%emt 0:06:00]} e4 {[%emt 0:07:18]} 21. Nd4 {[%emt 0:05:46]} Qc7 {[%emt 0:04:03]} (21... Qd6 $5 {[%cal Rh6h5]} 22. Qf2 Ne5 $15) 22. Red1 $2 {[%emt 0:11:18][%mdl 8192] [#] White does not recover from this.} (22. Qf2 $11 {and White stays safe.}) 22... h5 $1 $19 {[%emt 0:01:59]} ({And not} 22... Nh5 23. Qf2 $15) 23. h4 {[%emt 0:02:31]} (23. Qe1 $142 h4 24. Nde2) 23... Ng4+ {[%emt 0:02:47][%cal Bf6g4,Bg4h2,Bh2f3][%mdl 32]} ({Wrong is} 23... Bd7 $2 24. Qe1 $19) 24. Kg1 {[%emt 0:01:57]} Qxg3 {[%emt 0:00:53] Black mates.} 25. Re1 {[%emt 0:07:41]} Nxh4 {[%emt 0:05:05]} 26. Kf1 {[%emt 0:05:52]} Nh2+ {[%emt 0:03:23]} 27. Kg1 {[%emt 0:03:45]} N2f3+ {[%emt 0:00:46] Weighted Error Value: White=0.94/Black=0.11 (very precise)} 0-1